{"text_format":"1","workbook":"xlsx","n_sheets":4,"sheets":["Questionnaire","DB","Table","Chart"],"not_rendered":{"charts":1,"images":3,"macros":1,"external_links":0,"defined_names":1,"comments":0,"pivot_tables":0},"unopened":[],"bounds":{"document_bytes":16777216,"sheet_cells":100000,"rows_first":2000,"rows_last":500,"rows_between":2000,"halvings":0,"cell_chars":16384,"cell_head_chars":4096},"cells_cut":0,"cells_raw":0,"read":"whole","date_system":"1900"}

{"sheet":"Questionnaire","index":0,"n_rows":5,"n_cols":2,"rows_kept":5,"cut":false,"hidden":false,"merged":[]}
[]
[]
[]
[null,"Welcome to OXYGY Self-Assesment"]
[null,"Plese click the button below to start the assessment"]

{"sheet":"DB","index":1,"n_rows":43,"n_cols":4,"rows_kept":43,"cut":false,"hidden":true,"merged":[]}
["Principle","Question","Answer","Answered value"]
["1. Value Demonstration",1.1000000000000001,null,{"$f":"IF(C2<>\"NA\",C2,\"\")","v":0}]
["1. Value Demonstration",1.2,null,{"$f":"IF(C3<>\"NA\",C3,\"\")","v":0}]
["1. Value Demonstration",1.3,null,{"$f":"IF(C4<>\"NA\",C4,\"\")","v":0}]
["1. Value Demonstration",1.4,null,0]
["1. Value Demonstration",1.5,null,0]
["1. Value Demonstration",1.6,null,0]
["1. Value Demonstration",1.7,null,0]
["2. Patient/Stakeholder Centricity",2.1,null,0]
["2. Patient/Stakeholder Centricity",2.2000000000000002,null,0]
["2. Patient/Stakeholder Centricity",2.2999999999999998,null,{"$f":"IF(C11<>\"NA\",C11,\"\")","v":0}]
["2. Patient/Stakeholder Centricity",2.4,null,0]
["2. Patient/Stakeholder Centricity",2.5,null,0]
["2. Patient/Stakeholder Centricity",2.6,null,0]
["2. Patient/Stakeholder Centricity",2.7,null,0]
["3. Digital as key enabler",3.1,null,0]
["3. Digital as key enabler",3.2,null,0]
["3. Digital as key enabler",3.3,null,0]
["3. Digital as key enabler",3.4,null,0]
["3. Digital as key enabler",3.5,null,0]
["3. Digital as key enabler",3.6,null,0]
["3. Digital as key enabler",3.7,null,0]
["4. Collaboration & Partnership",4.0999999999999996,null,0]
["4. Collaboration & Partnership",4.2,null,0]
["4. Collaboration & Partnership",4.3,null,0]
["4. Collaboration & Partnership",4.4000000000000004,null,0]
["4. Collaboration & Partnership",4.5,null,0]
["4. Collaboration & Partnership",4.5999999999999996,null,0]
["4. Collaboration & Partnership",4.7,null,0]
["5. Innovation Culture",5.0999999999999996,null,0]
["5. Innovation Culture",5.2,null,0]
["5. Innovation Culture",5.3,null,0]
["5. Innovation Culture",5.4,null,0]
["5. Innovation Culture",5.5,null,0]
["5. Innovation Culture",5.6,null,0]
["5. Innovation Culture",5.7,null,0]
["6. Regulatory Compliance",6.1,null,0]
["6. Regulatory Compliance",6.2,null,0]
["6. Regulatory Compliance",6.3,null,0]
["6. Regulatory Compliance",6.4,null,0]
["6. Regulatory Compliance",6.5,null,0]
["6. Regulatory Compliance",6.6,null,0]
["6. Regulatory Compliance",6.7,null,0]

{"sheet":"Table","index":2,"n_rows":8,"n_cols":6,"rows_kept":8,"cut":false,"hidden":true,"merged":[[0,0,1,0],[0,1,0,2],[0,3,0,5]]}
["Principle","Statement",null,"Score"]
[null,"Answered","Not Applicable","Total","Average","Percentage"]
["1. Value Demonstration",{"$f":"COUNTIF(Tabella1[Principle],Table!A3)-Table!C3","v":7},{"$f":"COUNTIFS(Tabella1[Principle],Table!A3,Tabella1[Answered value],\"\")","v":0},{"$f":"SUMIF(Tabella1[Principle],Table!A3,Tabella1[Answered value])","v":0},{"$f":"IF(B3>0, D3/B3, \"no answer\")","v":0},{"$f":"IF(B3>0, E3/5, \"no answer\")","v":0}]
["2. Patient/Stakeholder Centricity",{"$f":"COUNTIF(Tabella1[Principle],Table!A4)-Table!C4","v":7},{"$f":"COUNTIFS(Tabella1[Principle],Table!A4,Tabella1[Answered value],\"\")","v":0},{"$f":"SUMIF(Tabella1[Principle],Table!A4,Tabella1[Answered value])","v":0},{"$f":"IF(B4>0, D4/B4, \"no answer\")","v":0},{"$f":"IF(B4>0, E4/5, \"no answer\")","v":0}]
["3. Digital as key enabler",{"$f":"COUNTIF(Tabella1[Principle],Table!A5)-Table!C5","v":7},{"$f":"COUNTIFS(Tabella1[Principle],Table!A5,Tabella1[Answered value],\"\")","v":0},{"$f":"SUMIF(Tabella1[Principle],Table!A5,Tabella1[Answered value])","v":0},0,0]
["4. Collaboration & Partnership",{"$f":"COUNTIF(Tabella1[Principle],Table!A6)-Table!C6","v":7},{"$f":"COUNTIFS(Tabella1[Principle],Table!A6,Tabella1[Answered value],\"\")","v":0},{"$f":"SUMIF(Tabella1[Principle],Table!A6,Tabella1[Answered value])","v":0},0,0]
["5. Innovation Culture",{"$f":"COUNTIF(Tabella1[Principle],Table!A7)-Table!C7","v":7},{"$f":"COUNTIFS(Tabella1[Principle],Table!A7,Tabella1[Answered value],\"\")","v":0},{"$f":"SUMIF(Tabella1[Principle],Table!A7,Tabella1[Answered value])","v":0},0,0]
["6. Regulatory Compliance",{"$f":"COUNTIF(Tabella1[Principle],Table!A8)-Table!C8","v":7},{"$f":"COUNTIFS(Tabella1[Principle],Table!A8,Tabella1[Answered value],\"\")","v":0},{"$f":"SUMIF(Tabella1[Principle],Table!A8,Tabella1[Answered value])","v":0},0,0]

{"sheet":"Chart","index":3,"n_rows":0,"n_cols":0,"rows_kept":0,"cut":false,"hidden":false,"merged":[]}